bitfinex/quotes_BTCUSD_20241013
["timestamp","ask_amount","ask_price","bid_price","bid_amount"]
[1728848234411,0.52006081,62803.0,62802.0,0.001638]
[1728848235333,0.5200556,62803.0,62802.0,0.002638]
[1728848235547,0.5220556,62803.0,62802.0,0.002638]
[1728848235767,0.5240556,62803.0,62802.0,0.002638]
[1728848236009,0.5220556,62803.0,62802.0,0.002638]
[1728848236234,0.5240556,62803.0,62802.0,0.002638]
[1728848236768,0.54899869,62803.0,62802.0,0.002638]
[1728848236992,0.54699869,62803.0,62802.0,0.002638]
[1728848237204,0.54899869,62803.0,62802.0,0.002638]
[1728848238347,0.55399869,62803.0,62802.0,0.002638]
[1728848239256,0.53909594,62803.0,62802.0,0.002638]
[1728848239504,0.56887517,62803.0,62802.0,0.002638]
[1728848240188,0.68945189,62803.0,62802.0,0.002638]
[1728848240406,0.6645088,62803.0,62802.0,0.002638]
[1728848240644,0.54393208,62803.0,62802.0,0.002638]
[1728848240875,0.70515609,62803.0,62802.0,0.002638]
[1728848242071,0.70597609,62803.0,62802.0,0.002638]
[1728848242923,0.6910871,62803.0,62802.0,0.002638]
[1728848243201,0.70595968,62803.0,62802.0,0.002638]
[1728848243422,0.89227571,62803.0,62802.0,0.002638]
[1728848244143,0.71601576,62803.0,62802.0,0.002638]
[1728848244591,0.71601576,62803.0,62802.0,0.001638]
[1728848245051,0.71501576,62803.0,62802.0,0.002638]
[1728848245521,0.71701576,62803.0,62802.0,0.002638]
[1728848245765,0.71501576,62803.0,62802.0,0.002638]
[1728848245998,0.71501576,62803.0,62802.0,0.003638]
[1728848246219,0.87938547,62803.0,62802.0,0.003638]
[1728848246466,0.54919091,62803.0,62802.0,0.003638]
[1728848246717,0.2237389,62803.0,62802.0,0.003638]
[1728848247645,0.2227389,62803.0,62802.0,0.002638]
[1728848248100,0.2227389,62803.0,62802.0,0.001638]
[1728848248101,0.2197389,62803.0,62802.0,0.001638]
[1728848248560,0.2227389,62803.0,62802.0,0.001638]
[1728848249493,0.3819669,62803.0,62802.0,0.001638]
[1728848250391,0.342148,62803.0,62802.0,0.001638]
[1728848250659,0.3570204,62803.0,62802.0,0.001638]
[1728848250876,0.35702143,62803.0,62802.0,0.001638]
[1728848256803,0.35902143,62803.0,62802.0,0.001638]
[1728848257345,0.52024544,62803.0,62802.0,0.001638]
[1728848257593,0.52524544,62803.0,62802.0,0.001638]
[1728848258036,0.52529233,62803.0,62802.0,0.001638]
[1728848259235,0.01874032,62803.0,62802.0,0.32209201]
[1728848259518,0.24124022,62815.0,62814.0,0.1592]
[1728848259976,0.24124022,62815.0,62814.0,0.19114]
[1728848259977,0.000819,62815.0,62814.0,0.19114]
[1728848261396,0.000819,62815.0,62814.0,0.20114]
[1728848261839,0.000819,62815.0,62814.0,0.19114]
[1728848262114,0.000819,62815.0,62814.0,0.21014]
[1728848266563,0.16764385,62815.0,62814.0,0.21014]
[1728848267283,0.16764385,62815.0,62814.0,0.1782]
[1728848269111,0.16964385,62815.0,62814.0,0.1782]
[1728848269356,0.16764385,62815.0,62814.0,0.019]
[1728848269598,0.32684085,62815.0,62814.0,0.019]
[1728848269810,0.32884085,62815.0,62814.0,0.008]
[1728848270041,0.32684085,62815.0,62814.0,0.008]
[1728848270269,0.32684085,62815.0,62814.0,0.014]
[1728848270730,0.32684085,62815.0,62814.0,0.008]
[1728848270978,0.16764385,62815.0,62810.0,0.159208]
[1728848271208,0.002,62814.0,62811.0,0.159206]
[1728848271450,0.162016,62815.0,62814.0,0.003]
[1728848271680,0.162016,62815.0,62809.0,0.318425]
[1728848271681,0.01569111,62815.0,62812.0,0.159205]
[1728848271923,0.01487211,62814.0,62811.0,0.159207]
[1728848272149,0.01487211,62813.0,62811.0,0.159207]
[1728848272373,0.18169696,62812.0,62811.0,0.159207]
[1728848273304,0.18169696,62812.0,62803.0,0.318454]
[1728848273305,0.18669839,62812.0,62803.0,0.318454]
[1728848273568,0.16682485,62806.0,62805.0,0.159222]
[1728848273794,0.18169839,62806.0,62805.0,0.159222]
[1728848274264,0.18169839,62806.0,62804.0,0.159224]
[1728848274484,0.01487354,62805.0,62803.0,0.159227]
[1728848274713,0.01487354,62804.0,62803.0,0.162227]
[1728848275625,0.01487354,62804.0,62803.0,0.166227]
[1728848275845,0.01487354,62804.0,62803.0,0.159227]
[1728848276570,0.01487354,62804.0,62803.0,0.160865]
[1728848276803,0.16682485,62806.0,62805.0,0.159222]
[1728848277012,0.18171018,62806.0,62805.0,0.159222]
[1728848278086,0.18171018,62806.0,62805.0,0.162222]
[1728848279156,0.18171018,62806.0,62805.0,0.168222]
[1728848279631,0.01488533,62806.0,62805.0,0.168222]
[1728848279861,0.18171018,62806.0,62805.0,0.168222]
[1728848280998,0.18171018,62806.0,62805.0,0.009]
[1728848281272,0.34593018,62806.0,62805.0,0.009]
[1728848281478,0.34793018,62806.0,62805.0,0.009]
[1728848282171,0.34793018,62806.0,62805.0,0.003]
[1728848282478,0.166225,62804.0,62803.0,0.001638]
[1728848282716,0.18111033,62804.0,62803.0,0.001638]
[1728848284754,0.18311033,62804.0,62803.0,0.001638]
[1728848285183,0.18511033,62804.0,62803.0,0.001638]
[1728848286946,0.18511541,62804.0,62803.0,0.001638]
[1728848288528,0.18593441,62804.0,62803.0,0.001638]
[1728848290778,0.34715842,62804.0,62803.0,0.001638]
[1728848290998,0.5000788,62804.0,62803.0,0.001638]
[1728848291443,0.5765788,62804.0,62803.0,0.001638]
[1728848298477,0.57659897,62804.0,62803.0,0.001638]
[1728848299335,0.84342382,62804.0,62803.0,0.001638]
[1728848299765,0.91406749,62804.0,62803.0,0.001638]
[1728848299989,0.86919607,62804.0,62803.0,0.001638]
[1728848300211,1.11719607,62804.0,62803.0,0.001638]
[1728848300438,1.11919607,62804.0,62803.0,0.002638]
[1728848300666,1.16682426,62804.0,62803.0,0.002638]
[1728848300879,1.16282426,62804.0,62803.0,0.001638]
[1728848301102,1.16282425,62804.0,62803.0,0.001638]
[1728848301326,1.17182425,62804.0,62803.0,0.003638]
[1728848301555,1.16482425,62804.0,62803.0,0.002638]
[1728848302056,1.15691367,62804.0,62803.0,0.003638]
[1728848302286,1.17182829,62804.0,62803.0,0.003638]
[1728848303204,1.12420011,62804.0,62803.0,0.003638]
[1728848305031,0.6777877,62799.0,62798.0,0.001638]
[1728848305266,0.85392633,62799.0,62798.0,0.001638]
[1728848305486,0.007,62789.0,62777.0,0.159293]
[1728848305762,0.68712648,62789.0,62775.0,0.0754]
[1728848305993,0.63281921,62789.0,62775.0,0.234697]
[1728848306231,0.164281,62782.0,62776.0,0.318593]
[1728848306465,0.13243238,62782.0,62776.0,0.318593]
[1728848306701,0.13243238,62782.0,62780.0,0.159285]
[1728848306931,0.12743238,62781.0,62776.0,0.318593]
[1728848307153,0.11251587,62778.0,62776.0,0.318593]
[1728848307384,0.11251587,62778.0,62777.0,0.159294]
[1728848307611,0.12743078,62778.0,62777.0,0.159294]
[1728848308805,0.12743078,62778.0,62777.0,0.164294]
[1728848309488,0.11251587,62778.0,62777.0,0.164294]
[1728848309754,0.12843331,62778.0,62777.0,0.166294]
[1728848310107,0.12743331,62778.0,62777.0,0.159294]
[1728848310507,0.12743331,62778.0,62777.0,0.163294]
[1728848310726,0.01491744,62778.0,62777.0,0.163294]
[1728848310956,0.12723331,62778.0,62777.0,0.163294]
[1728848311427,0.12693331,62778.0,62777.0,0.163294]
[1728848311657,0.12633331,62778.0,62777.0,0.163294]
[1728848311894,0.01381744,62778.0,62777.0,0.163294]
[1728848312123,0.12633331,62778.0,62777.0,0.163294]
[1728848312364,0.12593331,62778.0,62777.0,0.163294]
[1728848312603,0.01301744,62778.0,62777.0,0.163294]
[1728848312847,0.01301744,62778.0,62777.0,0.261494]
[1728848312848,0.01281744,62778.0,62777.0,0.261494]
[1728848313090,0.01281744,62778.0,62777.0,0.53169601]
[1728848313316,0.01221744,62778.0,62777.0,0.63169601]
[1728848313568,0.01181744,62778.0,62777.0,0.63169601]
[1728848313799,0.01181744,62778.0,62777.0,0.62769601]
[1728848314031,0.01161744,62778.0,62777.0,0.75232055]
[1728848314263,0.24032122,62798.0,62797.0,0.159243]
[1728848314498,0.24022122,62798.0,62797.0,0.234643]
[1728848314744,0.000819,62804.0,62803.0,0.159228]
[1728848314745,0.11313487,62804.0,62803.0,0.159228]
[1728848314973,0.11303487,62804.0,62803.0,0.159228]
[1728848315226,0.11303487,62804.0,62799.0,0.318475]
[1728848315468,0.11293487,62804.0,62800.0,0.477701]
[1728848315704,0.11293487,62804.0,62801.0,0.159232]
[1728848315947,0.003419,62804.0,62801.0,0.159232]
[1728848316185,0.000319,62804.0,62801.0,0.159232]
[1728848316418,0.162545,62804.0,62798.0,0.318479]
[1728848316647,0.160545,62804.0,62800.0,0.159234]
[1728848316882,0.160545,62804.0,62797.0,0.0754]
[1728848316883,0.159231,62802.0,62797.0,0.0754]
[1728848317134,0.32609889,62803.0,62799.0,0.159237]
[1728848319455,0.16786989,62803.0,62799.0,0.159236]
[1728848320357,0.16786989,62803.0,62799.0,0.002]
[1728848320580,0.16786989,62803.0,62800.0,0.159234]
[1728848321511,0.32709889,62803.0,62799.0,0.159236]
[1728848321739,0.32609889,62803.0,62799.0,0.159236]
[1728848322189,0.32709889,62803.0,62799.0,0.159236]
[1728848322633,0.32809889,62803.0,62799.0,0.159236]
[1728848323570,0.32809889,62803.0,62800.0,0.002]
[1728848324004,0.32809889,62803.0,62799.0,0.159236]
[1728848324235,0.32809889,62803.0,62799.0,0.161236]
[1728848324462,0.002,62803.0,62802.0,0.15923]
[1728848324961,0.000319,62804.0,62803.0,0.159228]
[1728848325671,0.000319,62804.0,62802.0,0.159228]
[1728848325894,0.001,62803.0,62802.0,0.15923]
[1728848326120,0.000319,62804.0,62802.0,0.15923]
[1728848326357,0.000319,62804.0,62801.0,0.318465]
[1728848326358,0.002319,62804.0,62803.0,0.159228]
[1728848326580,0.01521857,62804.0,62803.0,0.159228]
[1728848327506,0.01521857,62804.0,62803.0,0.160228]
[1728848328177,0.01521597,62804.0,62803.0,0.160228]
[1728848328700,0.01521571,62804.0,62803.0,0.160228]
[1728848328960,0.01521571,62804.0,62803.0,0.242728]
[1728848329197,0.01721571,62804.0,62803.0,0.242728]
[1728848329890,0.01721571,62804.0,62803.0,0.40395201]
[1728848330122,0.01721571,62804.0,62803.0,0.43589201]
[1728848330617,0.01721571,62804.0,62803.0,0.52759201]
[1728848330854,0.002319,62804.0,62803.0,0.52759201]
[1728848331092,0.003319,62804.0,62803.0,0.53559201]
[1728848331322,0.001319,62804.0,62803.0,0.53559201]
[1728848331574,0.001319,62804.0,62803.0,0.54459201]
[1728848331575,0.002319,62804.0,62803.0,0.54459201]
[1728848332046,0.002319,62804.0,62803.0,0.64459201]
[1728848332287,0.002319,62804.0,62803.0,0.65959201]
[1728848332556,0.001319,62804.0,62803.0,0.65959201]
[1728848332797,0.002319,62804.0,62803.0,0.67259201]
[1728848333014,0.001319,62804.0,62803.0,0.66359201]
[1728848333241,0.000319,62804.0,62803.0,0.65059201]
[1728848333475,0.000319,62804.0,62803.0,0.66459201]
[1728848333476,0.001319,62804.0,62803.0,0.66459201]
[1728848334170,0.001319,62804.0,62803.0,0.67559201]
[1728848334171,0.002319,62804.0,62803.0,0.67559201]
[1728848334648,0.001319,62804.0,62803.0,0.66459201]
[1728848334883,0.002319,62804.0,62803.0,0.67859201]
[1728848341248,0.002319,62804.0,62803.0,0.65559201]
[1728848341662,0.001319,62804.0,62803.0,0.54889201]
[1728848342101,0.001319,62804.0,62803.0,0.46539201]
[1728848342789,0.000319,62804.0,62803.0,0.45239201]
[1728848343213,0.001319,62804.0,62803.0,0.46539201]
[1728848343427,0.01620361,62804.0,62803.0,0.46539201]
[1728848344077,0.001319,62804.0,62803.0,0.46539201]
[1728848344276,0.01720361,62804.0,62803.0,0.47839201]
[1728848345815,0.01720722,62804.0,62803.0,0.47839201]
[1728848353789,0.01722368,62804.0,62803.0,0.47839201]
[1728848354270,0.002319,62804.0,62803.0,0.47839201]
[1728848354518,0.01722694,62804.0,62803.0,0.47839201]
[1728848355213,3.26e-06,62804.0,62803.0,0.8409619]
[1728848355460,0.000819,62815.0,62814.0,0.19114]
[1728848355694,0.000819,62815.0,62814.0,0.6012339]
[1728848355921,0.000819,62815.0,62814.0,0.64663748]
[1728848358018,0.000819,62815.0,62814.0,0.70106375]
[1728848358244,0.000819,62815.0,62814.0,0.71106375]
[1728848358480,0.000819,62815.0,62814.0,0.90274349]
[1728848358713,0.000819,62815.0,62814.0,0.90076349]
[1728848358946,0.000819,62815.0,62814.0,0.74606375]
[1728848359182,0.000819,62815.0,62814.0,0.73406375]
[1728848359631,0.000819,62815.0,62814.0,0.91476349]
[1728848359873,0.000819,62815.0,62814.0,0.73806375]
[1728848360099,0.000819,62815.0,62814.0,0.75206375]
[1728848360335,0.000819,62815.0,62814.0,0.91876349]
[1728848360569,0.000819,62815.0,62814.0,0.90476349]
[1728848360799,0.000819,62815.0,62814.0,0.72406375]
[1728848361035,0.000819,62815.0,62814.0,0.75206375]
[1728848361699,0.000819,62815.0,62814.0,0.76769466]
[1728848362841,0.000819,62815.0,62814.0,0.77968583]
[1728848364903,0.000819,62815.0,62814.0,0.94638557]
[1728848365880,1e-06,62815.0,62814.0,1.28970679]
[1728848366076,0.0005,62819.0,62818.0,0.31413]
[1728848366306,0.0005,62819.0,62818.0,2.02000867]
[1728848366534,0.0005,62819.0,62818.0,1.97285375]
[1728848366781,0.0005,62819.0,62818.0,2.02000867]
[1728848367480,0.0005,62819.0,62818.0,1.97285375]
[1728848367697,0.0005,62819.0,62818.0,1.98685375]
[1728848367929,0.0005,62819.0,62818.0,2.00085375]
[1728848369318,0.0005,62819.0,62818.0,2.06463175]
[1728848370701,2.0,62820.0,62819.0,0.314127]
[1728848370978,2.0,62820.0,62819.0,0.47535101]
[1728848371944,2.0,62820.0,62819.0,0.48935101]
[1728848372396,2.0,62820.0,62819.0,0.50335101]
[1728848380022,2.0,62820.0,62819.0,0.61561584]
[1728848385332,2.01492753,62820.0,62819.0,0.61725384]
[1728848385585,2.01574653,62820.0,62819.0,0.61725384]
[1728848385825,2.01074653,62820.0,62819.0,0.61725384]
[1728848386516,2.10944653,62820.0,62819.0,0.288825]
[1728848386765,2.10944653,62820.0,62819.0,0.188825]
[1728848387239,2.10944653,62820.0,62819.0,0.174825]
[1728848387708,2.10944653,62820.0,62819.0,0.160825]
[1728848388164,2.10944653,62820.0,62819.0,0.167825]
[1728848388609,2.10944653,62820.0,62819.0,0.176825]
[1728848389055,2.10944653,62820.0,62819.0,0.167825]
[1728848389524,2.10944653,62820.0,62819.0,0.170825]
[1728848389746,2.10944653,62820.0,62819.0,0.163825]
[1728848390448,2.10944653,62820.0,62819.0,0.166825]
[1728848391120,2.10444653,62820.0,62819.0,0.166825]
[1728848392516,2.089519,62820.0,62819.0,0.166825]
[1728848392780,2.18004228,62820.0,62819.0,0.166825]
[1728848393728,2.18004228,62820.0,62819.0,0.163825]
[1728848393967,2.18004228,62820.0,62819.0,0.004638]
[1728848394218,2.18004228,62820.0,62819.0,0.006638]
[1728848394681,2.18004228,62820.0,62819.0,0.003638]
[1728848394902,2.18004228,62820.0,62819.0,0.005638]
[1728848396326,2.18004228,62820.0,62819.0,0.001638]
[1728848396562,2.34122628,62820.0,62819.0,0.001638]
[1728848396787,2.34222628,62820.0,62819.0,0.001638]
[1728848398722,2.46149111,62820.0,62819.0,0.001638]
[1728848398951,2.78408483,62820.0,62819.0,0.001638]
[1728848399896,2.78108483,62820.0,62819.0,0.001638]
[1728848400139,2.78508483,62820.0,62819.0,0.002638]
[1728848400373,2.78608483,62820.0,62819.0,0.003638]
[1728848401325,2.78208483,62820.0,62819.0,0.002638]
[1728848401563,2.78208483,62820.0,62819.0,0.003638]
[1728848401800,2.78808483,62820.0,62819.0,0.003638]
[1728848404407,2.77316155,62820.0,62819.0,0.003638]
[1728848405797,0.164222,62805.0,62804.0,0.24205922]
[1728848406030,0.45718683,62805.0,62804.0,0.24205922]
[1728848406487,0.45718683,62805.0,62804.0,0.001638]
[1728848406488,0.45918683,62805.0,62804.0,0.001638]
[1728848406717,0.62041084,62805.0,62804.0,0.001638]
[1728848407678,0.62041084,62805.0,62804.0,0.002638]
[1728848407679,0.62341084,62805.0,62804.0,0.002638]
[1728848407919,1.10647252,62805.0,62804.0,0.002638]
[1728848408656,0.007,62802.0,62801.0,0.001638]
[1728848408896,0.84211081,62802.0,62801.0,0.001638]
[1728848410027,0.85211081,62802.0,62801.0,0.002638]
[1728848410257,1.1112281,62802.0,62801.0,0.002638]
[1728848410700,1.1212281,62802.0,62801.0,0.002638]
[1728848411851,0.1877,62791.0,62783.0,0.24042122]
[1728848412076,0.67516041,62791.0,62783.0,0.24042122]
[1728848412303,0.82307509,62791.0,62783.0,0.24042122]
[1728848412527,0.164276,62784.0,62783.0,0.24042122]
[1728848412747,0.67317841,62784.0,62783.0,0.24042122]
[1728848412971,0.67317841,62784.0,62777.0,0.001638]
[1728848412972,0.159286,62780.0,62777.0,0.001638]
[1728848413197,0.1669784,62778.0,62777.0,0.001638]
[1728848413665,0.1669784,62781.0,62780.0,0.159286]
[1728848413878,0.1669784,62785.0,62779.0,0.318577]
[1728848414100,0.004,62784.0,62781.0,0.318563]
[1728848414318,0.1669784,62785.0,62783.0,0.159277]
[1728848414509,0.1669784,62785.0,62784.0,0.159276]
[1728848415026,0.1669784,62785.0,62777.0,0.001638]
[1728848415027,0.009,62784.0,62777.0,0.001638]
[1728848415251,0.2585784,62781.0,62778.0,0.24042122]
[1728848415466,0.2585784,62781.0,62779.0,0.159288]
[1728848415745,0.2585784,62781.0,62777.0,0.16093]
[1728848416200,0.4178634,62781.0,62777.0,0.160931]
[1728848416428,0.2585784,62781.0,62777.0,0.001638]
[1728848416649,0.4188634,62781.0,62777.0,0.160931]
[1728848416880,0.4198634,62781.0,62777.0,0.160931]
[1728848417126,0.159291,62778.0,62777.0,0.001638]
[1728848419820,0.164291,62778.0,62777.0,0.001638]
[1728848420264,0.17913579,62778.0,62777.0,0.001638]
[1728848420487,0.34611419,62778.0,62777.0,0.001638]
[1728848420707,0.27003579,62778.0,62777.0,0.001638]
[1728848420961,0.38518221,62778.0,62777.0,0.001638]
[1728848421182,0.71738462,62778.0,62777.0,0.001638]
[1728848421408,0.53556143,62778.0,62777.0,0.001638]
[1728848421639,0.54840123,62778.0,62777.0,0.001638]
[1728848421858,0.88235803,62778.0,62777.0,0.001638]
[1728848422077,0.88535803,62778.0,62777.0,0.001638]
[1728848422545,0.88235803,62778.0,62777.0,0.001638]
[1728848422774,0.72137963,62778.0,62777.0,0.001638]
[1728848422992,0.72437963,62778.0,62777.0,0.001638]
[1728848423212,0.72137963,62778.0,62777.0,0.001638]
[1728848423500,0.72737963,62778.0,62777.0,0.001638]
[1728848423736,0.72537963,62778.0,62777.0,0.001638]
[1728848425072,0.72737963,62778.0,62777.0,0.001638]
[1728848426202,0.72537963,62778.0,62777.0,0.001638]
[1728848427088,0.71937963,62778.0,62777.0,0.001638]
[1728848427317,0.72037963,62778.0,62777.0,0.001638]
[1728848427539,0.72737963,62778.0,62777.0,0.001638]
[1728848427758,0.72037963,62778.0,62777.0,0.001638]
[1728848428212,0.72937963,62778.0,62777.0,0.001638]
[1728848428432,0.72737963,62778.0,62777.0,0.001638]
[1728848428885,0.72937963,62778.0,62777.0,0.001638]
[1728848430035,0.78745325,62778.0,62777.0,0.001638]
[1728848433207,0.78830847,62778.0,62777.0,0.001638]
[1728848435532,0.44611003,62778.0,62777.0,0.001638]
[1728848435791,0.67116205,62778.0,62777.0,0.001638]
[1728848436715,0.65628703,62778.0,62777.0,0.001638]
[1728848437665,0.67120839,62778.0,62777.0,0.001638]
[1728848438128,0.67320839,62778.0,62777.0,0.001638]
[1728848438348,0.8325781,62778.0,62777.0,0.001638]
[1728848442071,0.67120839,62778.0,62777.0,0.001638]
[1728848443927,0.65628703,62778.0,62777.0,0.001638]
[1728848444168,0.67124105,62778.0,62777.0,0.001638]
[1728848445532,0.03477402,62778.0,62777.0,0.001638]
[1728848445766,0.02977402,62778.0,62777.0,0.238232]
[1728848446262,0.02277402,62778.0,62777.0,0.238232]
[1728848446495,0.01577402,62778.0,62777.0,0.238232]
[1728848446715,0.03277402,62778.0,62777.0,0.238232]
[1728848447169,0.01577402,62778.0,62777.0,0.238232]
[1728848447411,0.01677402,62778.0,62777.0,0.239232]
[1728848447637,0.01677402,62778.0,62777.0,0.240232]
[1728848447638,0.01777402,62778.0,62777.0,0.240232]
[1728848447872,0.01776378,62778.0,62777.0,0.240232]
[1728848453758,0.00282,62778.0,62777.0,0.240232]
[1728848460781,0.11534601,62778.0,62777.0,0.003638]
[1728848461020,0.11534601,62778.0,62777.0,0.162932]
[1728848461462,0.11434601,62778.0,62777.0,0.161932]
[1728848461682,0.11334601,62778.0,62777.0,0.161932]
[1728848462197,0.11334601,62778.0,62777.0,0.160932]
[1728848462610,0.11334601,62778.0,62777.0,0.162932]
[1728848463523,0.00082,62778.0,62777.0,0.162932]
[1728848463970,0.01574554,62778.0,62777.0,0.162932]
[1728848465557,0.00082,62778.0,62777.0,0.162932]
[1728848465787,0.01574755,62778.0,62777.0,0.162932]
[1728848468041,0.00082,62778.0,62777.0,0.162932]
[1728848475569,0.00082,62778.0,62777.0,0.003638]
[1728848475818,0.09142,62778.0,62777.0,0.003638]
[1728848477065,0.250711,62778.0,62777.0,0.003638]
[1728848478038,0.09142,62778.0,62777.0,0.003638]
[1728848478266,0.00082,62778.0,62777.0,0.001638]
[1728848478494,0.00082,62778.0,62777.0,0.161932]
[1728848479227,0.00082,62778.0,62777.0,0.001638]
[1728848479898,0.00082,62778.0,62777.0,0.160932]
[1728848480357,0.00082,62778.0,62777.0,0.001638]
[1728848480602,0.00082,62778.0,62777.0,0.160932]
[1728848480829,0.00082,62778.0,62777.0,0.001638]
[1728848481291,0.00082,62778.0,62777.0,0.160932]
[1728848481764,0.00082,62778.0,62777.0,0.001638]
[1728848483601,0.00082,62778.0,62777.0,0.160932]
[1728848484550,0.63118078,62770.0,62767.0,0.10834]
[1728848484789,0.63118078,62770.0,62769.0,0.39973522]
[1728848485029,0.63118078,62770.0,62769.0,0.159314]
[1728848485966,0.63218078,62770.0,62769.0,0.159314]
[1728848486204,0.63318078,62770.0,62769.0,0.160314]
[1728848486925,0.63218078,62770.0,62769.0,0.160314]
[1728848488329,0.63318078,62770.0,62769.0,0.161314]
[1728848488783,0.63318078,62770.0,62769.0,0.83754535]
[1728848488784,0.63009175,62770.0,62769.0,0.83754535]
[1728848489019,0.63009175,62770.0,62769.0,0.64887801]
[1728848489760,0.62909175,62770.0,62769.0,0.64787801]
[1728848489976,0.62909175,62770.0,62769.0,0.64951801]
[1728848490203,0.63009175,62770.0,62769.0,0.65051801]
[1728848490480,0.63009175,62770.0,62769.0,0.76304402]
[1728848490727,0.63009175,62770.0,62769.0,0.69796658]
[1728848490963,0.62909175,62770.0,62769.0,0.69696658]
[1728848491233,0.62809175,62770.0,62769.0,0.69597303]
[1728848491460,0.62909175,62770.0,62769.0,0.65651801]
[1728848491684,0.62909175,62770.0,62769.0,0.65751801]
[1728848491912,0.63009175,62770.0,62769.0,0.66551801]
[1728848492163,0.62909175,62770.0,62769.0,0.65651801]
[1728848492395,0.63009175,62770.0,62769.0,0.67051801]
[1728848492623,0.63009175,62770.0,62769.0,0.71797372]
[1728848493118,0.63009175,62770.0,62769.0,0.67051801]
[1728848493343,0.62509175,62770.0,62769.0,0.67051801]
[1728848493564,0.62509175,62770.0,62769.0,0.71796901]
[1728848494239,0.62200272,62770.0,62769.0,0.71796901]
[1728848494721,0.62200272,62770.0,62769.0,0.84567768]
[1728848495174,0.62200272,62770.0,62769.0,0.84566516]
[1728848495622,0.62200272,62770.0,62769.0,0.91683225]
[1728848495861,0.62200272,62770.0,62769.0,0.67051801]
[1728848496087,0.62200272,62770.0,62769.0,0.7416851]
[1728848498830,0.62200272,62770.0,62769.0,0.67051801]
[1728848499264,0.62200272,62770.0,62769.0,0.73434701]
[1728848499494,0.62200272,62770.0,62769.0,0.8055141]
[1728848499934,0.62200272,62770.0,62769.0,0.73434701]
[1728848500160,0.62200272,62770.0,62769.0,0.8055141]
[1728848500383,0.62200272,62770.0,62769.0,0.73434701]
[1728848500877,0.62200272,62770.0,62769.0,0.8055141]
[1728848501784,0.62282272,62770.0,62769.0,0.8055141]
[1728848502248,0.62282272,62770.0,62769.0,0.73434701]
[1728848503227,0.62282272,62770.0,62769.0,0.8055141]
[1728848503448,0.62282272,62770.0,62769.0,0.73434701]
[1728848503933,0.62282272,62770.0,62769.0,0.7105141]
[1728848505088,0.62282272,62770.0,62769.0,0.63934701]
[1728848507032,0.62282272,62770.0,62769.0,0.7105141]
[1728848507259,0.62282272,62770.0,62769.0,0.63934701]
[1728848512205,0.62282272,62770.0,62769.0,0.7105057]
[1728848512672,0.62282272,62770.0,62769.0,0.63934701]
[1728848512903,0.61896734,62770.0,62769.0,0.63934701]
[1728848513392,0.61896734,62770.0,62769.0,0.68678378]
[1728848513860,0.61896734,62770.0,62769.0,0.63934701]
[1728848514081,0.61896734,62770.0,62769.0,0.68678407]
[1728848514289,0.61896734,62770.0,62769.0,0.63934701]
[1728848514722,0.61896734,62770.0,62769.0,0.68678319]
[1728848515580,0.61896734,62770.0,62769.0,0.68678345]
[1728848515792,0.63391239,62770.0,62769.0,0.63934701]
[1728848516021,0.6339125,62770.0,62769.0,0.68678375]
[1728848516724,0.63391592,62770.0,62769.0,0.68678375]
[1728848516954,0.61896734,62770.0,62769.0,0.63934701]
[1728848517176,0.63391585,62770.0,62769.0,0.63934701]
[1728848518110,0.63082682,62770.0,62769.0,0.63934701]
[1728848518337,0.63082682,62770.0,62769.0,0.68678344]
[1728848518828,0.63082682,62770.0,62769.0,0.63934701]
[1728848520458,0.63082682,62770.0,62769.0,0.6103836]
[1728848520680,0.63082682,62770.0,62769.0,0.56294701]
[1728848520893,0.63082682,62770.0,62769.0,0.61038252]
[1728848521598,0.63082682,62770.0,62769.0,0.56294701]
[1728848523698,0.63082682,62770.0,62769.0,0.67547302]
[1728848525452,0.62773779,62770.0,62769.0,0.67547302]
[1728848526791,0.62773779,62770.0,62769.0,0.65247302]
[1728848527653,0.62773779,62770.0,62769.0,0.72365377]
[1728848528782,0.62773779,62770.0,62769.0,0.89885139]
[1728848529010,0.62773779,62770.0,62769.0,0.53994701]
[1728848529246,0.62773779,62770.0,62769.0,0.58741176]
[1728848529689,0.71913779,62770.0,62769.0,0.58741176]
[1728848529926,0.71913779,62770.0,62769.0,0.53994701]
[1728848530801,0.71813779,62770.0,62769.0,0.52594701]
[1728848531033,0.71813779,62770.0,62769.0,0.53494701]
[1728848531034,0.70418928,62770.0,62769.0,0.53494701]
[1728848531274,0.71914675,62770.0,62769.0,0.53494701]
[1728848531504,0.71814675,62770.0,62769.0,0.52694701]
[1728848531963,0.71914675,62770.0,62769.0,0.53494701]
[1728848532177,0.71814675,62770.0,62769.0,0.52694701]
[1728848532398,0.71814675,62770.0,62769.0,0.53494701]
[1728848532650,0.71914675,62770.0,62769.0,0.53494701]
[1728848533565,0.71814675,62770.0,62769.0,0.52594701]
[1728848534240,0.71914675,62770.0,62769.0,0.53294701]
[1728848535147,0.70418928,62770.0,62769.0,0.53294701]
[1728848535349,0.71914119,62770.0,62769.0,0.53294701]
[1728848536695,0.71914119,62770.0,62769.0,0.371723]
[1728848539247,0.71913766,62770.0,62769.0,0.371723]
[1728848539677,0.71913699,62770.0,62769.0,0.371723]
[1728848543468,0.70418928,62770.0,62769.0,0.371723]
[1728848543693,0.71913529,62770.0,62769.0,0.371723]
[1728848551355,0.70418928,62770.0,62769.0,0.371723]
[1728848551576,0.71913732,62770.0,62769.0,0.371723]
[1728848551790,0.71913722,62770.0,62769.0,0.371723]
[1728848555857,0.62773722,62770.0,62769.0,0.77336823]
[1728848556076,0.62773722,62770.0,62769.0,0.71574701]
[1728848556531,0.62773722,62770.0,62769.0,0.76323595]
[1728848557202,0.62773722,62770.0,62769.0,0.80998043]
[1728848557440,0.62773722,62770.0,62769.0,1.00899748]
[1728848557651,0.61278928,62770.0,62769.0,0.91401959]
[1728848558334,0.61278928,62770.0,62769.0,1.00896431]
[1728848558551,0.61278928,62770.0,62769.0,1.00196431]
[1728848558552,0.61178928,62770.0,62769.0,1.00196431]
[1728848559240,0.61278928,62770.0,62769.0,1.00996431]
[1728848559935,0.61278928,62770.0,62769.0,1.12947032]
[1728848560170,0.61278928,62770.0,62769.0,1.15324796]
[1728848560415,0.61278928,62770.0,62769.0,1.0345256]
[1728848561779,0.61278928,62770.0,62769.0,1.03439436]
[1728848561991,0.61278928,62770.0,62769.0,1.03241436]
[1728848563804,0.61278928,62770.0,62769.0,2.17228835]
[1728848564052,0.61278928,62770.0,62769.0,2.40338095]